[Event "Live Chess"]
[Site "Chess.com"]
[Date "2010.12.14"]
[Round "-"]
[White "hipposcottimus"]
[Black "bobleft"]
[Result "1-0"]
[CurrentPosition "1Q6/5N2/p1k1K1p1/7p/8/8/6PP/8 w - -"]
[Timezone "UTC"]
[ECO "B06"]
[ECOUrl "https://www.chess.com/openings/Modern-Defense-with-1-d4-2.c4-Bg7-3.e4-d6"]
[UTCDate "2010.12.14"]
[UTCTime "06:55:08"]
[WhiteElo "1452"]
[BlackElo "1433"]
[TimeControl "600"]
[Termination "hipposcottimus won by resignation"]
[StartTime "06:55:08"]
[EndDate "2010.12.14"]
[EndTime "07:13:02"]
[Link "https://www.chess.com/game/live/77127149"]

1. e4 {[%clk 0:10:00]} 1... g6 {[%clk 0:10:00]} 2. d4 {[%clk 0:09:57.4]} 2... Bg7 {[%clk 0:09:59.6]} 3. c4 {[%clk 0:09:53.5]} 3... d6 {[%clk 0:09:59]} 4. Nc3 {[%clk 0:09:50.7]} 4... Nf6 {[%clk 0:09:58.5]} 5. e5 {[%clk 0:09:47.9]} 5... Nfd7 {[%clk 0:09:56.6]} 6. f4 {[%clk 0:09:44.1]} 6... dxe5 {[%clk 0:09:54.9]} 7. fxe5 {[%clk 0:09:43.3]} 7... f6 {[%clk 0:09:53.1]} 8. Nf3 {[%clk 0:09:42.1]} 8... fxe5 {[%clk 0:09:51.6]} 9. Be2 {[%clk 0:09:35.4]} 9... exd4 {[%clk 0:09:49.3]} 10. Nxd4 {[%clk 0:09:32.4]} 10... Bxd4 {[%clk 0:09:48.4]} 11. Qxd4 {[%clk 0:09:30.1]} 11... Rf8 {[%clk 0:09:32.4]} 12. Bh6 {[%clk 0:09:20.8]} 12... Nc6 {[%clk 0:09:25.1]} 13. Qg7 {[%clk 0:09:11.9]} 13... Nb4 {[%clk 0:08:32.6]} 14. O-O-O {[%clk 0:08:52.9]} 14... e6 {[%clk 0:07:08.4]} 15. Rxd7 {[%clk 0:08:20.4]} 15... Qf6 {[%clk 0:06:14.8]} 16. Rxc7 {[%clk 0:06:51.1]} 16... Qxg7 {[%clk 0:06:12.1]} 17. Rxg7 {[%clk 0:06:43.7]} 17... Rh8 {[%clk 0:05:33.3]} 18. Rf1 {[%clk 0:06:24]} 18... Bd7 {[%clk 0:05:30.1]} 19. Rff7 {[%clk 0:06:20]} 19... O-O-O {[%clk 0:05:23.5]} 20. c5 {[%clk 0:06:07.2]} 20... Nc6 {[%clk 0:04:28.5]} 21. Bg5 {[%clk 0:05:43.1]} 21... Rhf8 {[%clk 0:03:53.7]} 22. Nb5 {[%clk 0:04:40.1]} 22... Rxf7 {[%clk 0:02:52]} 23. Nd6+ {[%clk 0:04:34.2]} 23... Kc7 {[%clk 0:02:20.5]} 24. Bxd8+ {[%clk 0:04:30.3]} 24... Kxd8 {[%clk 0:02:17.6]} 25. Rxf7 {[%clk 0:04:27.8]} 25... Nd4 {[%clk 0:02:11.6]} 26. Nxb7+ {[%clk 0:04:12.6]} 26... Ke8 {[%clk 0:02:00.1]} 27. Nd6+ {[%clk 0:04:04.7]} 27... Kd8 {[%clk 0:01:54.1]} 28. Ba6 {[%clk 0:04:04.4]} 28... h5 {[%clk 0:01:28.9]} 29. b4 {[%clk 0:03:29.5]} 29... Ne2+ {[%clk 0:01:22.6]} 30. Kd2 {[%clk 0:03:25]} 30... Nd4 {[%clk 0:01:02.8]} 31. Kd3 {[%clk 0:02:59.4]} 31... Nc6 {[%clk 0:00:54.6]} 32. b5 {[%clk 0:02:53.8]} 32... Ne5+ {[%clk 0:00:52.2]} 33. Ke4 {[%clk 0:02:46.9]} 33... Nxf7 {[%clk 0:00:48.2]} 34. Nxf7+ {[%clk 0:02:46.1]} 34... Kc7 {[%clk 0:00:37.6]} 35. c6 {[%clk 0:02:41.8]} 35... Bc8 {[%clk 0:00:32.7]} 36. Bxc8 {[%clk 0:02:33.7]} 36... Kxc8 {[%clk 0:00:31.5]} 37. a4 {[%clk 0:02:31.9]} 37... Kc7 {[%clk 0:00:30.2]} 38. a5 {[%clk 0:02:29.4]} 38... a6 {[%clk 0:00:20.3]} 39. b6+ {[%clk 0:02:23.1]} 39... Kxc6 {[%clk 0:00:18.5]} 40. Ke5 {[%clk 0:02:21]} 40... Kb5 {[%clk 0:00:17.5]} 41. Kxe6 {[%clk 0:02:18.8]} 41... Kxa5 {[%clk 0:00:17.1]} 42. b7 {[%clk 0:02:16.9]} 42... Kb6 {[%clk 0:00:16.1]} 43. b8=Q+ {[%clk 0:02:13]} 43... Kc6 {[%clk 0:00:14.8]} 1-0

[Event "Live Chess"]
[Site "Chess.com"]
[Date "2010.12.14"]
[Round "-"]
[White "hipposcottimus"]
[Black "tribula"]
[Result "0-1"]
[CurrentPosition "8/p3kpp1/N5p1/1P2r2r/3R4/2n5/P5PP/3R2K1 w - -"]
[Timezone "UTC"]
[ECO "C00"]
[ECOUrl "https://www.chess.com/openings/French-Defense-Normal-Variation"]
[UTCDate "2010.12.14"]
[UTCTime "06:21:40"]
[WhiteElo "1444"]
[BlackElo "1458"]
[TimeControl "600"]
[Termination "tribula won on time"]
[StartTime "06:21:40"]
[EndDate "2010.12.14"]
[EndTime "06:40:39"]
[Link "https://www.chess.com/game/live/77120544"]

1. e4 {[%clk 0:10:00]} 1... e6 {[%clk 0:10:00]} 2. d4 {[%clk 0:09:56]} 2... Ne7 {[%clk 0:09:58.7]} 3. f4 {[%clk 0:09:49.2]} 3... Ng6 {[%clk 0:09:56.2]} 4. Nf3 {[%clk 0:09:43.5]} 4... Be7 {[%clk 0:09:51.3]} 5. Ng5 {[%clk 0:09:25.6]} 5... b6 {[%clk 0:09:42.9]} 6. Bd3 {[%clk 0:09:20.9]} 6... Bb7 {[%clk 0:09:31.3]} 7. O-O {[%clk 0:09:17.5]} 7... d6 {[%clk 0:09:26.4]} 8. f5 {[%clk 0:08:49.6]} 8... exf5 {[%clk 0:09:13.4]} 9. exf5 {[%clk 0:08:46.2]} 9... Bxg5 {[%clk 0:08:49.7]} 10. fxg6 {[%clk 0:08:43.4]} 10... hxg6 {[%clk 0:08:28.9]} 11. Bf4 {[%clk 0:07:05.5]} 11... Bxf4 {[%clk 0:08:20.2]} 12. Qe2+ {[%clk 0:07:01.5]} 12... Kf8 {[%clk 0:07:58.8]} 13. Rxf4 {[%clk 0:06:28.6]} 13... Qg5 {[%clk 0:07:24.2]} 14. Be4 {[%clk 0:05:48.2]} 14... d5 {[%clk 0:06:51]} 15. Rg4 {[%clk 0:05:36.5]} 15... Qe7 {[%clk 0:06:18.7]} 16. Bd3 {[%clk 0:04:56.3]} 16... Qxe2 {[%clk 0:06:14.5]} 17. Bxe2 {[%clk 0:04:54.5]} 17... Nd7 {[%clk 0:06:12.4]} 18. Nc3 {[%clk 0:04:50.9]} 18... Nf6 {[%clk 0:06:04.5]} 19. Rf4 {[%clk 0:04:38.6]} 19... c6 {[%clk 0:05:52.9]} 20. Raf1 {[%clk 0:04:24.9]} 20... Ke7 {[%clk 0:05:35.3]} 21. Re1 {[%clk 0:04:15]} 21... Kd6 {[%clk 0:05:25.1]} 22. b4 {[%clk 0:03:56.4]} 22... Rae8 {[%clk 0:05:13.7]} 23. b5 {[%clk 0:03:49.7]} 23... c5 {[%clk 0:04:52.8]} 24. dxc5+ {[%clk 0:03:42.9]} 24... bxc5 {[%clk 0:04:49.5]} 25. Rd1 {[%clk 0:02:37.1]} 25... d4 {[%clk 0:04:34.3]} 26. Bc4 {[%clk 0:02:14]} 26... Kc7 {[%clk 0:04:12.8]} 27. Na4 {[%clk 0:02:08.1]} 27... Kd6 {[%clk 0:03:20]} 28. c3 {[%clk 0:01:40.8]} 28... Bd5 {[%clk 0:03:17.8]} 29. cxd4 {[%clk 0:01:05.8]} 29... cxd4 {[%clk 0:02:52.4]} 30. Rfxd4 {[%clk 0:00:59.6]} 30... Re5 {[%clk 0:02:32.6]} 31. Nc3 {[%clk 0:00:52.3]} 31... Kc5 {[%clk 0:02:11.7]} 32. Bxd5 {[%clk 0:00:43.4]} 32... Nxd5 {[%clk 0:02:07]} 33. Na4+ {[%clk 0:00:37.1]} 33... Kd6 {[%clk 0:01:39.6]} 34. Nc3 {[%clk 0:00:26.8]} 34... Rhh5 {[%clk 0:01:28.4]} 35. Ne4+ {[%clk 0:00:07]} 35... Ke6 {[%clk 0:01:26.1]} 36. Nc5+ {[%clk 0:00:05.2]} 36... Ke7 {[%clk 0:01:22.6]} 37. Na6 {[%clk 0:00:01.2]} 37... Nc3 {[%clk 0:01:18.4]} 0-1

[Event "Live Chess"]
[Site "Chess.com"]
[Date "2010.12.14"]
[Round "-"]
[White "hipposcottimus"]
[Black "Heresiarca"]
[Result "1-0"]
[CurrentPosition "r5k1/1bqp1p1p/pp2r1p1/5R2/P1P3Q1/2N5/1P3BPP/R5K1 b - -"]
[Timezone "UTC"]
[ECO "B30"]
[ECOUrl "https://www.chess.com/openings/Sicilian-Defense-Old-Sicilian-Variation-3.c4-g6"]
[UTCDate "2010.12.14"]
[UTCTime "05:57:45"]
[WhiteElo "1452"]
[BlackElo "1397"]
[TimeControl "480+3"]
[Termination "hipposcottimus won by resignation"]
[StartTime "05:57:45"]
[EndDate "2010.12.14"]
[EndTime "06:08:14"]
[Link "https://www.chess.com/game/live/77116188"]

1. e4 {[%clk 0:08:00]} 1... c5 {[%clk 0:08:00]} 2. Nf3 {[%clk 0:07:58.7]} 2... Nc6 {[%clk 0:08:02]} 3. c4 {[%clk 0:08:00.2]} 3... g6 {[%clk 0:07:55.3]} 4. Nc3 {[%clk 0:07:51.2]} 4... Bg7 {[%clk 0:07:56.2]} 5. d3 {[%clk 0:07:53.8]} 5... e6 {[%clk 0:07:55.6]} 6. Be2 {[%clk 0:07:39]} 6... a6 {[%clk 0:07:55.9]} 7. a4 {[%clk 0:07:38.7]} 7... Nge7 {[%clk 0:07:57]} 8. O-O {[%clk 0:07:38.3]} 8... O-O {[%clk 0:07:57.6]} 9. Be3 {[%clk 0:07:37.9]} 9... Qc7 {[%clk 0:07:32]} 10. d4 {[%clk 0:07:37.7]} 10... cxd4 {[%clk 0:07:24.2]} 11. Nxd4 {[%clk 0:07:36.7]} 11... b6 {[%clk 0:06:31.4]} 12. f4 {[%clk 0:05:38.5]} 12... Bb7 {[%clk 0:06:02.4]} 13. f5 {[%clk 0:05:02.4]} 13... exf5 {[%clk 0:05:58.9]} 14. exf5 {[%clk 0:04:57.7]} 14... Nxd4 {[%clk 0:05:25.4]} 15. f6 {[%clk 0:04:46.6]} 15... Nxe2+ {[%clk 0:05:26.4]} 16. Qxe2 {[%clk 0:04:36.1]} 16... Bxf6 {[%clk 0:05:13]} 17. Rxf6 {[%clk 0:04:35.2]} 17... Nf5 {[%clk 0:05:00.6]} 18. Bf2 {[%clk 0:03:23.2]} 18... Rfe8 {[%clk 0:04:39.9]} 19. Qg4 {[%clk 0:03:22.5]} 19... Re6 {[%clk 0:04:17.2]} 20. Rxf5 {[%clk 0:03:20.9]} 1-0

[Event "Live Chess"]
[Site "Chess.com"]
[Date "2010.12.14"]
[Round "-"]
[White "wozislightning"]
[Black "hipposcottimus"]
[Result "0-1"]
[CurrentPosition "8/pk6/2q5/3Q4/5PP1/P1p1PK2/1r5P/8 w - -"]
[Timezone "UTC"]
[ECO "D10"]
[ECOUrl "https://www.chess.com/openings/Slav-Defense-3.Nc3"]
[UTCDate "2010.12.14"]
[UTCTime "05:47:52"]
[WhiteElo "1388"]
[BlackElo "1445"]
[TimeControl "480"]
[Termination "hipposcottimus won by resignation"]
[StartTime "05:47:52"]
[EndDate "2010.12.14"]
[EndTime "05:56:02"]
[Link "https://www.chess.com/game/live/77114229"]

1. d4 {[%clk 0:08:00]} 1... d5 {[%clk 0:08:00]} 2. c4 {[%clk 0:07:58.6]} 2... c6 {[%clk 0:07:59.2]} 3. Nc3 {[%clk 0:07:57.5]} 3... Nd7 {[%clk 0:07:55.1]} 4. e3 {[%clk 0:07:52.2]} 4... e6 {[%clk 0:07:53.4]} 5. Nf3 {[%clk 0:07:51.2]} 5... Ngf6 {[%clk 0:07:52]} 6. Bd3 {[%clk 0:07:48.5]} 6... Bb4 {[%clk 0:07:51.4]} 7. cxd5 {[%clk 0:07:45.7]} 7... Nxd5 {[%clk 0:07:47.1]} 8. Bd2 {[%clk 0:07:42.5]} 8... O-O {[%clk 0:07:37.5]} 9. O-O {[%clk 0:07:41.1]} 9... N7f6 {[%clk 0:07:29.3]} 10. Nxd5 {[%clk 0:07:27.7]} 10... Nxd5 {[%clk 0:07:26.5]} 11. Bxb4 {[%clk 0:07:20.3]} 11... Nxb4 {[%clk 0:07:24.5]} 12. a3 {[%clk 0:07:12.6]} 12... Nd5 {[%clk 0:07:19.9]} 13. Qc2 {[%clk 0:07:10.2]} 13... f6 {[%clk 0:07:18.6]} 14. Bxh7+ {[%clk 0:07:05.9]} 14... Kh8 {[%clk 0:07:17.8]} 15. Bd3 {[%clk 0:07:03.5]} 15... f5 {[%clk 0:07:12]} 16. Ne5 {[%clk 0:07:01.9]} 16... Nf6 {[%clk 0:07:02.8]} 17. f4 {[%clk 0:06:59.6]} 17... Nh7 {[%clk 0:07:00]} 18. Rf3 {[%clk 0:06:58.1]} 18... Rf6 {[%clk 0:06:49.4]} 19. Rh3 {[%clk 0:06:54.7]} 19... Qc7 {[%clk 0:06:33.5]} 20. Rf1 {[%clk 0:06:40.4]} 20... Bd7 {[%clk 0:06:29.1]} 21. Rff3 {[%clk 0:06:38.9]} 21... b6 {[%clk 0:06:14.5]} 22. Rfg3 {[%clk 0:06:37.3]} 22... c5 {[%clk 0:06:11.6]} 23. dxc5 {[%clk 0:06:25.1]} 23... bxc5 {[%clk 0:06:04.4]} 24. Ng6+ {[%clk 0:06:13.5]} 24... Kg8 {[%clk 0:05:58.1]} 25. Ne7+ {[%clk 0:06:03.5]} 25... Kh8 {[%clk 0:05:51.8]} 26. Qe2 {[%clk 0:05:57.4]} 26... Be8 {[%clk 0:05:37.2]} 27. Rxh7+ {[%clk 0:05:44.7]} 27... Kxh7 {[%clk 0:05:23.8]} 28. Rh3+ {[%clk 0:05:43.7]} 28... Rh6 {[%clk 0:05:15.7]} 29. Rxh6+ {[%clk 0:05:41.2]} 29... gxh6 {[%clk 0:05:12.2]} 30. Nxf5 {[%clk 0:05:31.3]} 30... exf5 {[%clk 0:05:07.9]} 31. Bxf5+ {[%clk 0:05:30.4]} 31... Bg6 {[%clk 0:05:07.1]} 32. Bxg6+ {[%clk 0:05:27.7]} 32... Kxg6 {[%clk 0:05:06.3]} 33. Qd3+ {[%clk 0:05:23.5]} 33... Kg7 {[%clk 0:05:05.8]} 34. Qc3+ {[%clk 0:05:21]} 34... Kg6 {[%clk 0:05:01.2]} 35. Kf2 {[%clk 0:05:13.3]} 35... Rb8 {[%clk 0:04:43]} 36. Qc2+ {[%clk 0:04:56.3]} 36... Kf6 {[%clk 0:04:39.5]} 37. g4 {[%clk 0:04:53.8]} 37... c4 {[%clk 0:04:31]} 38. Qc3+ {[%clk 0:04:50.4]} 38... Ke7 {[%clk 0:04:14.8]} 39. Qg7+ {[%clk 0:04:45.9]} 39... Kd8 {[%clk 0:04:06.8]} 40. Qxh6 {[%clk 0:04:37.9]} 40... Rxb2+ {[%clk 0:04:04.1]} 41. Kf3 {[%clk 0:04:34.4]} 41... c3 {[%clk 0:04:00.6]} 42. Qf6+ {[%clk 0:04:29.4]} 42... Kc8 {[%clk 0:03:56.1]} 43. Qe6+ {[%clk 0:04:27.3]} 43... Kb7 {[%clk 0:03:53.4]} 44. Qd5+ {[%clk 0:04:24.2]} 44... Qc6 {[%clk 0:03:48.1]} 0-1

[Event "Live Chess"]
[Site "Chess.com"]
[Date "2010.12.14"]
[Round "-"]
[White "jepone"]
[Black "hipposcottimus"]
[Result "0-1"]
[CurrentPosition "r4rk1/ppp2ppp/3q1n2/2N5/2BPR3/5P2/PP5P/5R1K w - -"]
[Timezone "UTC"]
[ECO "C34"]
[ECOUrl "https://www.chess.com/openings/Kings-Gambit-Accepted-MacLeod-Defense"]
[UTCDate "2010.12.14"]
[UTCTime "04:25:51"]
[WhiteElo "1524"]
[BlackElo "1676"]
[TimeControl "60"]
[Termination "hipposcottimus won on time"]
[StartTime "04:25:51"]
[EndDate "2010.12.14"]
[EndTime "04:27:41"]
[Link "https://www.chess.com/game/live/77098208"]

1. e4 {[%clk 0:01:00]} 1... e5 {[%clk 0:01:00]} 2. f4 {[%clk 0:00:58.9]} 2... Nc6 {[%clk 0:00:59.7]} 3. Nf3 {[%clk 0:00:58.5]} 3... exf4 {[%clk 0:00:58.4]} 4. Bc4 {[%clk 0:00:57.2]} 4... d6 {[%clk 0:00:58]} 5. d3 {[%clk 0:00:56.4]} 5... Bg4 {[%clk 0:00:57.3]} 6. Bxf4 {[%clk 0:00:55.6]} 6... Nd4 {[%clk 0:00:56.3]} 7. O-O {[%clk 0:00:54]} 7... Bxf3 {[%clk 0:00:55.7]} 8. gxf3 {[%clk 0:00:51.9]} 8... Qh4 {[%clk 0:00:53.4]} 9. c3 {[%clk 0:00:50.6]} 9... Qxf4 {[%clk 0:00:52.2]} 10. cxd4 {[%clk 0:00:49.4]} 10... Be7 {[%clk 0:00:51.9]} 11. Nd2 {[%clk 0:00:47]} 11... Bh4 {[%clk 0:00:45.6]} 12. Qe2 {[%clk 0:00:31.4]} 12... Nf6 {[%clk 0:00:44.9]} 13. e5 {[%clk 0:00:29.2]} 13... Qxd4+ {[%clk 0:00:40]} 14. Kh1 {[%clk 0:00:24.8]} 14... dxe5 {[%clk 0:00:38.9]} 15. Nb3 {[%clk 0:00:19.4]} 15... Qf4 {[%clk 0:00:37.1]} 16. d4 {[%clk 0:00:15.4]} 16... O-O {[%clk 0:00:34.9]} 17. Qxe5 {[%clk 0:00:12.8]} 17... Qh6 {[%clk 0:00:27.6]} 18. Nc5 {[%clk 0:00:06.2]} 18... Bg5 {[%clk 0:00:27]} 19. Rae1 {[%clk 0:00:03.4]} 19... Bf4 {[%clk 0:00:25.5]} 20. Qxf4 {[%clk 0:00:01.5]} 20... Qxf4 {[%clk 0:00:24]} 21. Re4 {[%clk 0:00:01.1]} 21... Qd6 {[%clk 0:00:20.3]} 0-1

[Event "Live Chess"]
[Site "Chess.com"]
[Date "2010.12.14"]
[Round "-"]
[White "hipposcottimus"]
[Black "jepone"]
[Result "0-1"]
[CurrentPosition "2k1r2N/pb1nb2p/1p3B2/2p5/8/8/PPP1QPqP/RN3RK1 w - -"]
[Timezone "UTC"]
[ECO "B32"]
[ECOUrl "https://www.chess.com/openings/Sicilian-Defense-Open-Franco-Sicilian-Variation"]
[UTCDate "2010.12.14"]
[UTCTime "04:24:03"]
[WhiteElo "1671"]
[BlackElo "1529"]
[TimeControl "60"]
[Termination "jepone won by checkmate"]
[StartTime "04:24:03"]
[EndDate "2010.12.14"]
[EndTime "04:25:41"]
[Link "https://www.chess.com/game/live/77097845"]

1. e4 {[%clk 0:01:00]} 1... c5 {[%clk 0:01:00]} 2. Nf3 {[%clk 0:00:59.7]} 2... Nc6 {[%clk 0:00:59.7]} 3. d4 {[%clk 0:00:59.3]} 3... e6 {[%clk 0:00:59.4]} 4. d5 {[%clk 0:00:58.4]} 4... Nb8 {[%clk 0:00:57.5]} 5. dxe6 {[%clk 0:00:57.2]} 5... fxe6 {[%clk 0:00:55.8]} 6. Bc4 {[%clk 0:00:53]} 6... b6 {[%clk 0:00:54.9]} 7. Bxe6 {[%clk 0:00:51.8]} 7... Bb7 {[%clk 0:00:50.7]} 8. Bg4 {[%clk 0:00:49]} 8... Nf6 {[%clk 0:00:48.8]} 9. Ne5 {[%clk 0:00:42.7]} 9... Nxe4 {[%clk 0:00:38.7]} 10. Bxd7+ {[%clk 0:00:39.9]} 10... Nxd7 {[%clk 0:00:37.5]} 11. Qh5+ {[%clk 0:00:38.4]} 11... g6 {[%clk 0:00:35.3]} 12. Nxg6 {[%clk 0:00:37.6]} 12... Nef6 {[%clk 0:00:29.6]} 13. Qe2+ {[%clk 0:00:26.1]} 13... Be7 {[%clk 0:00:25.8]} 14. Nxh8 {[%clk 0:00:24.6]} 14... Qc7 {[%clk 0:00:21.8]} 15. Bh6 {[%clk 0:00:21.6]} 15... O-O-O {[%clk 0:00:21.1]} 16. O-O {[%clk 0:00:16.9]} 16... Re8 {[%clk 0:00:19.4]} 17. Bg5 {[%clk 0:00:15.1]} 17... Qc6 {[%clk 0:00:18.3]} 18. Bxf6 {[%clk 0:00:14]} 18... Qxg2# {[%clk 0:00:17.4]} 0-1

[Event "Live Chess"]
[Site "Chess.com"]
[Date "2010.12.14"]
[Round "-"]
[White "jepone"]
[Black "hipposcottimus"]
[Result "0-1"]
[CurrentPosition "8/r4kpp/pp4n1/8/R7/7P/6P1/6K1 w - -"]
[Timezone "UTC"]
[ECO "C31"]
[ECOUrl "https://www.chess.com/openings/Kings-Gambit-Declined-Falkbeer-Blackburne-Attack"]
[UTCDate "2010.12.14"]
[UTCTime "04:21:43"]
[WhiteElo "1516"]
[BlackElo "1682"]
[TimeControl "60"]
[Termination "hipposcottimus won on time"]
[StartTime "04:21:43"]
[EndDate "2010.12.14"]
[EndTime "04:23:52"]
[Link "https://www.chess.com/game/live/77097379"]

1. e4 {[%clk 0:01:00]} 1... e5 {[%clk 0:01:00]} 2. f4 {[%clk 0:00:59.7]} 2... d5 {[%clk 0:00:59.1]} 3. Nf3 {[%clk 0:00:57.7]} 3... dxe4 {[%clk 0:00:58.5]} 4. Nxe5 {[%clk 0:00:57.1]} 4... Bd6 {[%clk 0:00:56.2]} 5. Bc4 {[%clk 0:00:55.3]} 5... Bxe5 {[%clk 0:00:53.4]} 6. fxe5 {[%clk 0:00:55]} 6... Ne7 {[%clk 0:00:51.4]} 7. O-O {[%clk 0:00:53.8]} 7... O-O {[%clk 0:00:51.1]} 8. Qe1 {[%clk 0:00:49.9]} 8... Bf5 {[%clk 0:00:47.9]} 9. Qf2 {[%clk 0:00:46.6]} 9... Bg6 {[%clk 0:00:47]} 10. d3 {[%clk 0:00:44.7]} 10... c6 {[%clk 0:00:45.1]} 11. Bb3 {[%clk 0:00:43.4]} 11... Na6 {[%clk 0:00:43.4]} 12. Nc3 {[%clk 0:00:43]} 12... Nc5 {[%clk 0:00:42.5]} 13. Nxe4 {[%clk 0:00:40.6]} 13... Nxb3 {[%clk 0:00:40.1]} 14. axb3 {[%clk 0:00:39]} 14... Bxe4 {[%clk 0:00:39.7]} 15. dxe4 {[%clk 0:00:37.8]} 15... Ng6 {[%clk 0:00:39.4]} 16. Bf4 {[%clk 0:00:32.1]} 16... f6 {[%clk 0:00:37.3]} 17. exf6 {[%clk 0:00:30.8]} 17... Rxf6 {[%clk 0:00:36.5]} 18. e5 {[%clk 0:00:29.2]} 18... Rxf4 {[%clk 0:00:35.4]} 19. Qe2 {[%clk 0:00:23.4]} 19... Qf8 {[%clk 0:00:28.3]} 20. e6 {[%clk 0:00:18.4]} 20... Re8 {[%clk 0:00:23.3]} 21. Rae1 {[%clk 0:00:14.5]} 21... Rxf1+ {[%clk 0:00:18.6]} 22. Rxf1 {[%clk 0:00:13.1]} 22... Qe7 {[%clk 0:00:18.3]} 23. Rf3 {[%clk 0:00:11]} 23... Qxe6 {[%clk 0:00:17.6]} 24. Qxe6+ {[%clk 0:00:10.3]} 24... Rxe6 {[%clk 0:00:16.4]} 25. Rf1 {[%clk 0:00:09.3]} 25... Re2 {[%clk 0:00:15.6]} 26. h3 {[%clk 0:00:08.2]} 26... Rxc2 {[%clk 0:00:14.8]} 27. b4 {[%clk 0:00:07.1]} 27... Rxb2 {[%clk 0:00:14.2]} 28. Rf4 {[%clk 0:00:05.8]} 28... b6 {[%clk 0:00:12.6]} 29. Re4 {[%clk 0:00:04.3]} 29... a6 {[%clk 0:00:11.3]} 30. b5 {[%clk 0:00:03.6]} 30... Kf7 {[%clk 0:00:10.8]} 31. bxc6 {[%clk 0:00:02.3]} 31... Rc2 {[%clk 0:00:08.8]} 32. c7 {[%clk 0:00:00.8]} 32... Rxc7 {[%clk 0:00:07.8]} 33. Ra4 {[%clk 0:00:00.5]} 33... Ra7 {[%clk 0:00:07.1]} 0-1

[Event "Live Chess"]
[Site "Chess.com"]
[Date "2010.12.14"]
[Round "-"]
[White "hipposcottimus"]
[Black "jepone"]
[Result "0-1"]
[CurrentPosition "8/5k1p/K7/8/8/8/q7/1r6 w - -"]
[Timezone "UTC"]
[ECO "B21"]
[ECOUrl "https://www.chess.com/openings/Sicilian-Defense-Smith-Morra-Gambit-2...d5"]
[UTCDate "2010.12.14"]
[UTCTime "04:19:25"]
[WhiteElo "1677"]
[BlackElo "1521"]
[TimeControl "60"]
[Termination "jepone won by checkmate"]
[StartTime "04:19:25"]
[EndDate "2010.12.14"]
[EndTime "04:21:35"]
[Link "https://www.chess.com/game/live/77096942"]

1. e4 {[%clk 0:01:00]} 1... c5 {[%clk 0:01:00]} 2. d4 {[%clk 0:00:58]} 2... d5 {[%clk 0:00:58.6]} 3. e5 {[%clk 0:00:54.8]} 3... Nc6 {[%clk 0:00:56.5]} 4. Bb5 {[%clk 0:00:53.1]} 4... Bd7 {[%clk 0:00:54.7]} 5. dxc5 {[%clk 0:00:51.6]} 5... e6 {[%clk 0:00:52.7]} 6. Nf3 {[%clk 0:00:49.3]} 6... Bxc5 {[%clk 0:00:51.8]} 7. Be3 {[%clk 0:00:47.6]} 7... Bxe3 {[%clk 0:00:50.1]} 8. fxe3 {[%clk 0:00:47.4]} 8... Qa5+ {[%clk 0:00:47.3]} 9. Nc3 {[%clk 0:00:44.4]} 9... a6 {[%clk 0:00:42.7]} 10. Bxc6 {[%clk 0:00:41.6]} 10... Bxc6 {[%clk 0:00:41.5]} 11. O-O {[%clk 0:00:41.3]} 11... f6 {[%clk 0:00:38.2]} 12. exf6 {[%clk 0:00:37.8]} 12... Nxf6 {[%clk 0:00:36.9]} 13. Ne5 {[%clk 0:00:37.6]} 13... O-O {[%clk 0:00:34.6]} 14. Nxc6 {[%clk 0:00:35.9]} 14... bxc6 {[%clk 0:00:34.3]} 15. e4 {[%clk 0:00:33.9]} 15... Nxe4 {[%clk 0:00:32.5]} 16. Rxf8+ {[%clk 0:00:30.6]} 16... Rxf8 {[%clk 0:00:31.1]} 17. Nxe4 {[%clk 0:00:30.4]} 17... dxe4 {[%clk 0:00:30.3]} 18. Qd6 {[%clk 0:00:29]} 18... Qd5 {[%clk 0:00:26.7]} 19. Qc7 {[%clk 0:00:25.1]} 19... Rd8 {[%clk 0:00:16.6]} 20. Qg3 {[%clk 0:00:24.7]} 20... Qd1+ {[%clk 0:00:14.6]} 21. Qe1 {[%clk 0:00:24.3]} 21... Qxe1+ {[%clk 0:00:13.3]} 22. Rxe1 {[%clk 0:00:24.1]} 22... Rd2 {[%clk 0:00:12.1]} 23. Rxe4 {[%clk 0:00:23.2]} 23... Rxc2 {[%clk 0:00:11.8]} 24. Rxe6 {[%clk 0:00:22.4]} 24... Kf7 {[%clk 0:00:11]} 25. Rxc6 {[%clk 0:00:21.8]} 25... Rxc6 {[%clk 0:00:10.1]} 26. Kf2 {[%clk 0:00:21.1]} 26... Rc2+ {[%clk 0:00:09.6]} 27. Ke3 {[%clk 0:00:20.8]} 27... Rxb2 {[%clk 0:00:09.1]} 28. Kd3 {[%clk 0:00:20.5]} 28... Rxa2 {[%clk 0:00:08.8]} 29. Kc3 {[%clk 0:00:20.2]} 29... Rxg2 {[%clk 0:00:08.3]} 30. Kb4 {[%clk 0:00:19.8]} 30... Rxh2 {[%clk 0:00:07.9]} 31. Ka5 {[%clk 0:00:19.5]} 31... Rh5+ {[%clk 0:00:07.6]} 32. Kxa6 {[%clk 0:00:18.5]} 32... g5 {[%clk 0:00:07.3]} 33. Kb6 {[%clk 0:00:18.3]} 33... g4 {[%clk 0:00:07]} 34. Kc6 {[%clk 0:00:17.3]} 34... g3 {[%clk 0:00:06.7]} 35. Kd6 {[%clk 0:00:17]} 35... g2 {[%clk 0:00:06.3]} 36. Kd7 {[%clk 0:00:16.8]} 36... Rd5+ {[%clk 0:00:05.2]} 37. Kc7 {[%clk 0:00:15.3]} 37... Rd1 {[%clk 0:00:04.8]} 38. Kc8 {[%clk 0:00:13.7]} 38... g1=Q {[%clk 0:00:03.9]} 39. Kc7 {[%clk 0:00:12.3]} 39... Qg2 {[%clk 0:00:03.6]} 40. Kc8 {[%clk 0:00:11.8]} 40... Qc2+ {[%clk 0:00:03.3]} 41. Kb7 {[%clk 0:00:10.5]} 41... Rb1+ {[%clk 0:00:03]} 42. Ka6 {[%clk 0:00:09]} 42... Qa2# {[%clk 0:00:02.7]} 0-1